bitfinex-derivatives/quotes_BTCF0:USTF0_20250508
["timestamp","ask_amount","ask_price","bid_price","bid_amount"]
[1746706739458,0.2009465,99514.0,99513.0,0.04800952]
[1746706740060,0.4299465,99514.0,99513.0,0.04800952]
[1746706740665,0.4299465,99514.0,99513.0,0.05000952]
[1746706740867,0.4299465,99514.0,99513.0,0.05300952]
[1746706741061,0.7907465,99514.0,99513.0,0.05300952]
[1746706741568,0.7907465,99514.0,99513.0,0.0373]
[1746706742670,0.79819297,99514.0,99513.0,0.0373]
[1746706742862,0.79819297,99514.0,99513.0,0.0343]
[1746706743068,0.79819297,99514.0,99513.0,0.0363]
[1746706743373,0.79919297,99514.0,99513.0,0.0343]
[1746706743871,0.79819297,99514.0,99513.0,0.0333]
[1746706744068,0.79919297,99514.0,99513.0,0.0333]
[1746706745274,0.79919297,99514.0,99513.0,0.04900995]
[1746706745470,0.79919297,99514.0,99513.0,0.0333]
[1746706745670,0.79919297,99514.0,99513.0,0.04901005]
[1746706746071,0.79919297,99514.0,99513.0,0.04801005]
[1746706746267,0.79919297,99514.0,99513.0,0.04900993]
[1746706746667,0.79819297,99514.0,99513.0,0.0333]
[1746706746867,0.79919297,99514.0,99513.0,0.0323]
[1746706747065,0.79919297,99514.0,99513.0,0.0333]
[1746706747270,0.63119297,99514.0,99513.0,0.0333]
[1746706748379,0.76829297,99514.0,99513.0,0.04901009]
[1746706748771,0.76829297,99514.0,99513.0,0.04900973]
[1746706750475,0.76729297,99514.0,99513.0,0.04900999]
[1746706751580,0.76729297,99514.0,99513.0,0.06472]
[1746706752082,0.59929297,99514.0,99513.0,0.06472]
[1746706752379,0.59929297,99514.0,99513.0,0.06471991]
[1746706752881,0.56919297,99514.0,99513.0,0.06471991]
[1746706754688,0.56919297,99514.0,99513.0,0.06471972]
[1746706754889,0.56919297,99514.0,99513.0,0.04901001]
[1746706755089,0.56919297,99514.0,99513.0,0.06471977]
[1746706755494,0.71995297,99514.0,99513.0,0.06471977]
[1746706755698,0.5617465,99514.0,99513.0,0.06471981]
[1746706755895,0.5617465,99514.0,99513.0,0.06471924]
[1746706756092,0.5617465,99514.0,99513.0,0.26566784]
[1746706756297,0.5617465,99514.0,99513.0,0.06471924]
[1746706757094,0.5617465,99514.0,99513.0,0.23271924]
[1746706757297,0.5617465,99514.0,99513.0,0.43366784]
[1746706757696,0.5617465,99514.0,99513.0,0.23271924]
[1746706759393,0.5617465,99514.0,99513.0,0.21701001]
[1746706759601,0.5617465,99514.0,99513.0,0.23271919]
[1746706760499,0.052745,99518.0,99513.0,0.23271919]
[1746706760500,0.00251,99518.0,99517.0,0.2009405]
[1746706760799,0.2009135,99532.0,99528.0,0.0502294]
[1746706760997,0.2009135,99532.0,99531.0,0.200908]
[1746706761195,0.2009135,99532.0,99531.0,0.22370615]
[1746706761398,0.2009135,99532.0,99531.0,0.19941616]
[1746706761694,0.3109135,99532.0,99531.0,0.19941573]
[1746706762397,0.3109135,99532.0,99531.0,0.03141573]
[1746706762597,0.3109135,99532.0,99531.0,0.03141623]
[1746706762799,0.3109135,99532.0,99531.0,0.03241622]
[1746706763402,0.3109135,99532.0,99531.0,0.03341625]
[1746706763901,0.3119135,99532.0,99531.0,0.03241625]
[1746706764399,0.3608,99539.0,99531.0,0.03241625]
[1746706764601,0.2009008,99537.0,99536.0,0.2008981]
[1746706764803,0.2009008,99537.0,99536.0,0.21660434]
[1746706764996,0.2009008,99537.0,99536.0,0.01570624]
[1746706765299,0.2009008,99537.0,99536.0,0.19941625]
[1746706765703,0.2009008,99537.0,99536.0,0.40031835]
[1746706765902,0.2009008,99537.0,99536.0,0.19941625]
[1746706766098,0.2009008,99537.0,99536.0,0.20041625]
[1746706767003,0.2009008,99537.0,99536.0,0.20041547]
[1746706767203,0.2009008,99537.0,99536.0,0.03241547]
[1746706768001,0.2309008,99537.0,99536.0,0.03241547]
[1746706768197,0.5917008,99537.0,99536.0,0.01671001]
[1746706768596,0.5917008,99537.0,99536.0,0.01571001]
[1746706768799,0.5917008,99537.0,99536.0,0.01671001]
[1746706769396,0.5917008,99537.0,99536.0,0.01571001]
[1746706769592,0.5917008,99537.0,99536.0,0.01771001]
[1746706770206,0.5917008,99537.0,99536.0,0.03241599]
[1746706770505,0.2309008,99537.0,99536.0,0.0334156]
[1746706771607,0.2309008,99537.0,99536.0,0.03341559]
[1746706773198,0.2309008,99537.0,99536.0,0.03241559]
[1746706773399,0.2009008,99537.0,99536.0,0.0324156]
[1746706773606,0.2009008,99537.0,99536.0,0.0344156]
[1746706774106,0.2009008,99537.0,99536.0,0.2024156]
[1746706774608,0.2009008,99537.0,99536.0,0.2014156]
[1746706774803,0.2009008,99537.0,99536.0,0.2024156]
[1746706775206,0.2009008,99537.0,99536.0,0.03441559]
[1746706775705,0.2009008,99537.0,99536.0,0.0458177]
[1746706776812,0.0326,99540.0,99537.0,0.2008994]
[1746706777010,0.2008961,99539.0,99538.0,0.05950769]
[1746706777500,0.2008961,99539.0,99538.0,0.0752177]
[1746706778304,0.2008961,99539.0,99538.0,0.0762177]
[1746706779002,0.2008961,99539.0,99538.0,0.0782177]
[1746706780412,0.2008961,99539.0,99538.0,0.07859423]
[1746706781216,0.2008961,99539.0,99538.0,0.07959423]
[1746706782314,0.2008961,99539.0,99538.0,0.08059423]
[1746706783616,0.2325961,99539.0,99538.0,0.08059423]
[1746706785409,0.2325961,99539.0,99538.0,0.11199423]
[1746706785815,0.2325961,99539.0,99538.0,0.1117966]
[1746706787218,0.2325961,99539.0,99538.0,0.11179711]
[1746706787611,0.2325961,99539.0,99538.0,0.11171581]
[1746706788309,0.2325961,99539.0,99538.0,0.27971581]
[1746706789017,0.2325961,99539.0,99538.0,0.31131581]
[1746706789222,0.2325961,99539.0,99538.0,0.31158887]
[1746706790717,0.2325961,99539.0,99538.0,0.31158867]
[1746706791219,0.2325961,99539.0,99538.0,0.14358894]
[1746706793017,0.2325961,99539.0,99538.0,0.1435888]
[1746706793516,0.2278846,99539.0,99538.0,0.1435888]
[1746706793724,0.5886846,99539.0,99538.0,0.0481888]
[1746706794118,0.5886846,99539.0,99538.0,0.0471888]
[1746706794325,0.7566846,99539.0,99538.0,0.0451888]
[1746706794511,0.7566846,99539.0,99538.0,0.0763888]
[1746706794710,0.7566846,99539.0,99538.0,0.06561085]
[1746706794921,0.7566846,99539.0,99538.0,0.07715571]
[1746706795120,0.7566846,99539.0,99538.0,0.04595589]
[1746706795824,0.7566846,99539.0,99538.0,0.04395589]
[1746706796420,0.7566846,99539.0,99538.0,0.01670502]
[1746706796626,0.7566846,99539.0,99538.0,0.04404038]
[1746706796818,0.7566846,99539.0,99538.0,0.04304038]
[1746706797014,0.7576846,99539.0,99538.0,0.04304038]
[1746706797513,0.7566846,99539.0,99538.0,0.04304038]
[1746706797915,0.7566846,99539.0,99538.0,0.04404038]
[1746706798424,0.2009203,99527.0,99526.0,0.15363746]
[1746706798725,0.5617203,99527.0,99526.0,0.15363746]
[1746706798930,0.66219631,99527.0,99526.0,0.15363746]
[1746706799117,0.83019631,99527.0,99526.0,0.15363746]
[1746706799321,0.89509631,99527.0,99526.0,0.15363746]
[1746706799717,0.89509631,99527.0,99526.0,0.17625746]
[1746706800123,0.89509631,99527.0,99526.0,0.02262]
[1746706800322,0.89509631,99527.0,99526.0,0.02362]
[1746706800727,0.89509631,99527.0,99526.0,0.02262]
[1746706800921,0.89709631,99527.0,99526.0,0.02262]
[1746706801121,1.24709631,99527.0,99526.0,0.02262]
[1746706801324,1.24809631,99527.0,99526.0,0.02262]
[1746706802326,0.89809631,99527.0,99526.0,0.02262]
[1746706805326,0.7976203,99527.0,99526.0,0.02262]
[1746706806224,0.6296203,99527.0,99526.0,0.02262]
[1746706806933,0.6286203,99527.0,99526.0,0.02262]
[1746706807122,0.6276203,99527.0,99526.0,0.02262]
[1746706807833,0.6266203,99527.0,99526.0,0.02362]
[1746706810732,0.6266203,99527.0,99526.0,0.03932798]
[1746706814027,0.6276203,99527.0,99526.0,0.03832798]
[1746706814427,0.6286203,99527.0,99526.0,0.03832798]
[1746706814738,0.6276203,99527.0,99526.0,0.03832798]
[1746706814937,0.6286203,99527.0,99526.0,0.03832798]
[1746706816634,0.5955203,99527.0,99526.0,0.03832798]
[1746706817935,0.5945203,99527.0,99526.0,0.03832798]
[1746706818235,0.5955203,99527.0,99526.0,0.03832798]
[1746706819339,0.2029203,99527.0,99526.0,0.05403568]
[1746706819739,0.2019203,99527.0,99526.0,0.05403568]
[1746706820344,0.2019203,99527.0,99526.0,0.22203568]
[1746706820538,0.2019203,99527.0,99526.0,0.22303568]
[1746706820939,0.2019203,99527.0,99526.0,0.22303499]
[1746706821342,0.2009203,99527.0,99526.0,0.22403499]
[1746706822745,0.2009203,99527.0,99526.0,0.22403509]
[1746706823341,0.2009203,99527.0,99526.0,0.05603509]
[1746706823543,0.2009203,99527.0,99526.0,0.05603508]
[1746706824539,0.0502275,99532.0,99526.0,0.05603422]
[1746706824747,0.2009183,99528.0,99527.0,0.08130624]
[1746706824959,0.00251,99533.0,99532.0,0.2009102]
[1746706825140,0.2008988,99538.0,99532.0,0.14141422]
[1746706825447,0.49572,99540.0,99537.0,0.200899]
[1746706825649,0.2008963,99539.0,99538.0,0.07880624]
[1746706825849,0.2008963,99539.0,99538.0,0.32821212]
[1746706825850,0.2008961,99539.0,99538.0,0.32821212]
[1746706826148,0.2008961,99539.0,99538.0,0.49621212]
[1746706826348,0.49572,99540.0,99538.0,0.49621068]
[1746706826651,0.3608,99540.0,99539.0,0.2166009]
[1746706827042,0.001,99546.0,99545.0,0.200884]
[1746706827236,0.001,99546.0,99545.0,0.02728908]
[1746706827444,0.2018819,99546.0,99545.0,0.02728908]
[1746706827638,0.2018819,99546.0,99545.0,0.04299706]
[1746706828052,0.2018819,99546.0,99545.0,0.04299555]
[1746706828346,0.2018819,99546.0,99545.0,0.21199555]
[1746706828853,0.2018819,99546.0,99545.0,0.21099555]
[1746706829154,0.001,99546.0,99545.0,0.41387955]
[1746706829350,0.20019998,99546.0,99545.0,0.21299555]
[1746706829555,0.19517493,99546.0,99545.0,0.23560555]
[1746706829853,0.19517493,99546.0,99545.0,0.23779873]
[1746706830356,0.19517493,99546.0,99545.0,0.23579873]
[1746706830653,0.19517493,99546.0,99545.0,0.23779873]
[1746706830845,0.2008781,99548.0,99545.0,0.43868103]
[1746706831053,0.2008781,99548.0,99546.0,0.09138075]
[1746706831241,0.2008781,99548.0,99547.0,0.02748075]
[1746706831754,0.2033843,99550.0,99547.0,0.10708873]
[1746706831956,0.00251,99550.0,99549.0,0.2008759]
[1746706832151,0.00251,99550.0,99549.0,0.46025665]
[1746706832653,0.00251,99550.0,99549.0,0.47596463]
[1746706832847,0.00251,99550.0,99549.0,0.50596463]
[1746706833353,0.00251,99550.0,99549.0,0.47596323]
[1746706833550,0.00251,99550.0,99549.0,0.47796323]
[1746706833752,0.00251,99550.0,99549.0,0.50796323]
[1746706834145,0.00251,99550.0,99549.0,0.50796304]
[1746706834356,0.00251,99550.0,99549.0,0.47896304]
[1746706834548,0.00251,99550.0,99549.0,0.46326068]
[1746706834750,0.00251,99550.0,99549.0,0.48096309]
[1746706834950,0.00251,99550.0,99549.0,0.48096322]
[1746706835253,0.00251,99550.0,99549.0,0.28008732]
[1746706835555,0.00251,99550.0,99549.0,0.48096322]
[1746706835752,0.2008679,99553.0,99549.0,0.28008732]
[1746706835953,0.0810162,99555.0,99551.0,0.2008718]
[1746706836143,0.0810162,99555.0,99552.0,0.07740246]
[1746706836343,0.0810162,99555.0,99553.0,0.02733708]
[1746706836556,0.28188,99555.0,99554.0,0.04304506]
[1746706837253,0.28188,99555.0,99554.0,0.0430452]
[1746706837655,0.25108,99555.0,99554.0,0.03241046]
[1746706837856,0.25108,99555.0,99554.0,0.04404354]
[1746706838053,0.25108,99555.0,99554.0,0.03241041]
[1746706838358,0.25108,99555.0,99554.0,0.21204337]
[1746706839058,0.25108,99555.0,99554.0,0.21204253]
[1746706839252,0.25108,99555.0,99554.0,0.21304248]
[1746706839455,0.25108,99555.0,99554.0,0.21304286]
[1746706839658,0.2008602,99557.0,99554.0,0.21304286]
[1746706839963,0.2008618,99556.0,99555.0,0.45333488]
[1746706840158,0.2008618,99556.0,99555.0,0.45333452]
[1746706840353,0.2008618,99556.0,99555.0,0.4690425]
[1746706840654,0.2008618,99556.0,99555.0,0.09660981]
[1746706840853,0.2008618,99556.0,99555.0,0.10829098]
[1746706841153,0.2008618,99556.0,99555.0,0.27629095]
[1746706841356,0.2008618,99556.0,99555.0,0.24990798]
[1746706841556,0.2008618,99556.0,99555.0,0.27728089]
[1746706841860,0.2008618,99556.0,99555.0,0.21208089]
[1746706842052,0.2326618,99556.0,99555.0,0.21208089]
[1746706842260,0.4322618,99556.0,99555.0,0.04408089]
[1746706842459,0.4322618,99556.0,99555.0,0.04408744]
[1746706842656,0.4322618,99556.0,99555.0,0.04408743]
[1746706843050,0.4322618,99556.0,99555.0,0.002]
[1746706843250,0.4322618,99556.0,99555.0,0.01770432]
[1746706843452,0.4322618,99556.0,99555.0,0.001]
[1746706843652,0.4352618,99556.0,99555.0,0.001]
[1746706843852,0.2008799,99547.0,99546.0,0.0315]
[1746706844452,0.2642799,99547.0,99546.0,0.0315]
[1746706845061,0.4322799,99547.0,99546.0,0.0315]
[1746706846161,0.2642799,99547.0,99546.0,0.0315]
[1746706846562,0.2642799,99547.0,99546.0,0.0644]
[1746706852665,0.2642799,99547.0,99546.0,0.09169018]
[1746706853067,0.2642799,99547.0,99546.0,0.0916947]
[1746706853372,0.2642799,99547.0,99546.0,0.09188168]
[1746706853978,0.2642799,99547.0,99546.0,0.09188167]
[1746706854366,0.2642799,99547.0,99546.0,0.09188168]
[1746706854571,0.2642799,99547.0,99546.0,0.08795572]
[1746706854768,0.2642799,99547.0,99546.0,0.10365918]
[1746706855069,0.2642799,99547.0,99546.0,0.119363]
[1746706855265,0.25956876,99547.0,99546.0,0.119363]
[1746706855466,0.25956876,99547.0,99546.0,0.12036336]
[1746706856267,0.25956876,99547.0,99546.0,0.11936335]
[1746706856568,0.25956876,99547.0,99546.0,0.12136335]
[1746706856873,0.2545437,99547.0,99546.0,0.12036288]
[1746706857070,0.2545437,99547.0,99546.0,0.12136288]
[1746706857277,0.2545437,99547.0,99546.0,0.08838254]
[1746706857866,0.2545437,99547.0,99546.0,0.11099254]
[1746706859072,0.2545437,99547.0,99546.0,0.08359168]
[1746706859275,0.2545437,99547.0,99546.0,0.11089034]
[1746706860875,0.2545437,99547.0,99546.0,0.11088997]
[1746706861279,0.2545437,99547.0,99546.0,0.47168997]
[1746706861570,0.2545437,99547.0,99546.0,0.11088997]
[1746706861975,0.2229437,99547.0,99546.0,0.06788786]
[1746706862171,0.2229437,99547.0,99546.0,0.11106954]
[1746706862371,0.2229437,99547.0,99546.0,0.08359203]
[1746706862566,0.2229437,99547.0,99546.0,0.11106887]
[1746706862879,0.1911437,99547.0,99546.0,0.11106887]
[1746706863280,0.1911437,99547.0,99546.0,0.11106935]
[1746706863667,0.1911437,99547.0,99546.0,0.11102695]
[1746706863877,0.0311,99558.0,99552.0,0.2008696]
[1746706864078,0.031,99556.0,99553.0,0.12153492]
[1746706864275,0.2008658,99554.0,99553.0,0.0941]
[1746706864466,0.2008658,99554.0,99553.0,0.121581]
[1746706864672,0.2008658,99554.0,99553.0,0.10980342]
[1746706864878,0.2008658,99554.0,99553.0,0.13728331]
[1746706865280,0.2008658,99554.0,99553.0,0.13728401]
[1746706865783,0.2008658,99554.0,99553.0,0.1215805]
[1746706865981,0.2008658,99554.0,99553.0,0.13728404]
[1746706866882,0.2337658,99554.0,99553.0,0.13728404]
[1746706867277,0.2327658,99554.0,99553.0,0.13728404]
[1746706867575,0.2327658,99554.0,99553.0,0.13728339]
[1746706868178,0.2008658,99554.0,99553.0,0.13728339]
[1746706868783,0.2008658,99554.0,99553.0,0.13728452]
[1746706869285,0.2008658,99554.0,99553.0,0.07498452]
[1746706869580,0.2008658,99554.0,99553.0,0.04318452]
[1746706869982,0.2634658,99554.0,99553.0,0.04318452]
[1746706870174,0.2634658,99554.0,99553.0,0.04418452]
[1746706870579,0.3923458,99554.0,99553.0,0.0441849]
[1746706870777,0.3923458,99554.0,99553.0,0.0451849]
[1746706870981,0.2634658,99554.0,99553.0,0.0451849]
[1746706871181,0.4314658,99554.0,99553.0,0.0451849]
[1746706872082,0.2634658,99554.0,99553.0,0.0451849]
[1746706872482,0.48968,99557.0,99553.0,0.04518458]
[1746706872679,0.2008638,99555.0,99554.0,0.10698458]
[1746706872977,0.19112812,99555.0,99554.0,0.10698458]
[1746706873482,0.18406219,99555.0,99554.0,0.10698458]
[1746706873880,0.18406219,99555.0,99554.0,0.10798458]
[1746706874079,0.18406219,99555.0,99554.0,0.27598458]
[1746706874382,0.0329,99559.0,99554.0,0.27598197]
[1746706874580,0.00740097,99563.0,99555.0,0.02747855]
[1746706874783,0.0329,99562.0,99556.0,0.09127855]
[1746706874983,0.2008597,99557.0,99556.0,0.0638]
[1746706875184,0.2008597,99557.0,99556.0,0.27498077]
[1746706877083,0.2008597,99557.0,99556.0,0.10698077]
[1746706877683,0.2008597,99557.0,99556.0,0.1079323]
[1746706877880,0.2008597,99557.0,99556.0,0.1089323]
[1746706878276,0.2008597,99557.0,99556.0,0.10893228]
[1746706878485,0.2008597,99557.0,99556.0,0.10898262]
[1746706878685,0.2008597,99557.0,99556.0,0.10898176]
[1746706879087,0.2008597,99557.0,99556.0,0.10798176]
[1746706879282,0.2008597,99557.0,99556.0,0.10898176]
[1746706879677,0.2008597,99557.0,99556.0,0.10798176]
[1746706879986,0.2008597,99557.0,99556.0,0.10898176]
[1746706880188,0.2008597,99557.0,99556.0,0.10892574]
[1746706880585,0.2008597,99557.0,99556.0,0.07712574]
[1746706881289,0.2325597,99557.0,99556.0,0.07692218]
[1746706882282,0.2325597,99557.0,99556.0,0.23044969]
[1746706882986,0.2325597,99557.0,99556.0,0.23735778]
[1746706883190,0.2325597,99557.0,99556.0,0.2530597]
[1746706883489,0.2325597,99557.0,99556.0,0.21013751]
[1746706884888,0.2325597,99557.0,99556.0,0.23723113]
[1746706885082,0.2639597,99557.0,99556.0,0.23723113]
[1746706887095,0.2639597,99557.0,99556.0,0.25293304]
[1746706888092,0.2639597,99557.0,99556.0,0.24154135]
[1746706888293,0.6247597,99557.0,99556.0,0.24154135]
[1746706888494,0.6247597,99557.0,99556.0,0.20954216]
[1746706888697,0.6247597,99557.0,99556.0,0.19383942]
[1746706888990,0.7506797,99557.0,99556.0,0.19383942]
[1746706889195,0.9186797,99557.0,99556.0,0.19383942]
[1746706889799,0.9186797,99557.0,99556.0,0.04031191]
[1746706891895,0.9196797,99557.0,99556.0,0.03931191]
[1746706892598,0.9186797,99557.0,99556.0,0.03831191]
[1746706893894,1.4186797,99557.0,99556.0,0.03831191]
[1746706895190,1.4196797,99557.0,99556.0,0.03831191]
[1746706896193,1.4186797,99557.0,99556.0,0.03831191]
[1746706896400,1.4216797,99557.0,99556.0,0.03831191]
[1746706896701,1.4236797,99557.0,99556.0,0.03831191]
[1746706898305,1.4206797,99557.0,99556.0,0.03831191]
[1746706898497,1.4236797,99557.0,99556.0,0.03831191]
[1746706899004,1.4226797,99557.0,99556.0,0.03831191]
[1746706899602,1.2967597,99557.0,99556.0,0.03831191]
[1746706899805,1.4178397,99557.0,99556.0,0.03831191]
[1746706906509,1.4178397,99557.0,99556.0,0.02261]
[1746706911011,0.2008638,99555.0,99554.0,0.0302]
[1746706911211,0.3208638,99555.0,99554.0,0.0302]
[1746706911612,0.3526638,99555.0,99554.0,0.0302]
[1746706912023,0.3566638,99555.0,99554.0,0.0302]
[1746706912225,0.5246638,99555.0,99554.0,0.0302]
[1746706912830,1.0266638,99555.0,99554.0,0.0302]
[1746706915822,1.1477438,99555.0,99554.0,0.0302]
[1746706919618,1.1159438,99555.0,99554.0,0.0302]
[1746706920227,0.9479438,99555.0,99554.0,0.0302]
[1746706920529,0.9431038,99555.0,99554.0,0.2310658]
[1746706920716,0.8231038,99555.0,99554.0,0.0302]
[1746706920919,0.8231038,99555.0,99554.0,0.2310658]
[1746706921122,0.8231038,99555.0,99554.0,0.1982]
[1746706921613,0.3231038,99555.0,99554.0,0.1982]
[1746706922022,0.3191038,99555.0,99554.0,0.1982]
[1746706922227,0.3211038,99555.0,99554.0,0.1982]
[1746706922615,0.3191038,99555.0,99554.0,0.2291]
[1746706922821,0.3171038,99555.0,99554.0,0.2301]
[1746706923022,0.3191038,99555.0,99554.0,0.2301]
[1746706923329,0.3191038,99555.0,99554.0,0.2291]
[1746706923627,0.3191038,99555.0,99554.0,0.2301]
[1746706929123,0.2028638,99555.0,99554.0,0.2301]
[1746706930430,0.2028638,99555.0,99554.0,0.2701]
[1746706930731,0.2028638,99555.0,99554.0,0.2301]
[1746706934024,0.2028638,99555.0,99554.0,0.4309658]
[1746706934820,0.2028638,99555.0,99554.0,0.4509658]
[1746706935025,0.2028638,99555.0,99554.0,0.4309658]
[1746706935433,0.002,99555.0,99554.0,0.4809658]
[1746706935632,0.002,99555.0,99554.0,0.5814138]
[1746706935832,0.0015071,99575.0,99566.0,0.2510443]
[1746706936135,0.0015071,99575.0,99567.0,0.0921]
[1746706936136,0.2008376,99568.0,99567.0,0.0921]
[1746706937335,0.2008376,99568.0,99567.0,0.4609396]
[1746706937835,0.2028376,99568.0,99567.0,0.4609396]
[1746706938330,0.2008376,99568.0,99567.0,0.4609396]
[1746706938536,0.2018376,99568.0,99567.0,0.4609396]
[1746706938727,0.2048376,99568.0,99567.0,0.4609396]
[1746706939435,0.2048376,99568.0,99567.0,0.5009396]
[1746706939638,0.2048376,99568.0,99567.0,0.2601]
[1746706939836,0.2048376,99568.0,99567.0,0.27726749]
[1746706941341,0.2048376,99568.0,99567.0,0.54810709]
[1746706941533,0.2048376,99568.0,99567.0,0.47810709]
[1746706942036,0.2048376,99568.0,99567.0,0.49333419]
[1746706942439,0.2048376,99568.0,99567.0,0.30783274]
[1746706942845,0.2048376,99568.0,99567.0,0.50867234]
[1746706943839,0.2048376,99568.0,99567.0,0.54867234]
[1746706944040,0.2048376,99568.0,99567.0,0.50867234]
[1746706945440,0.004,99568.0,99567.0,0.50867234]
[1746706945635,0.2048376,99568.0,99567.0,0.29066525]
[1746706946043,0.2048376,99568.0,99567.0,0.27543815]
[1746706946338,0.2048376,99568.0,99567.0,0.0921]
[1746706946540,0.2349376,99568.0,99567.0,0.0921]
[1746706947135,0.3005376,99568.0,99567.0,0.0608]
[1746706947945,0.3005376,99568.0,99567.0,0.2616396]
[1746706948134,0.3005376,99568.0,99567.0,0.4296396]
[1746706948646,0.3005376,99568.0,99567.0,0.2288]
[1746706949343,0.3005376,99568.0,99567.0,0.1983]
[1746706949846,0.6613376,99568.0,99567.0,0.168]
[1746706950345,0.6613376,99568.0,99564.0,0.15344721]
[1746706950346,0.2008436,99565.0,99564.0,0.15344721]
[1746706951141,0.3994436,99565.0,99564.0,0.15344721]
[1746706951541,0.4024436,99565.0,99564.0,0.15344721]
[1746706952639,0.2008577,99558.0,99557.0,0.0322]
[1746706953541,0.2628577,99558.0,99557.0,0.0322]
[1746706953739,0.6236577,99558.0,99554.0,0.15344721]
[1746706953940,0.2008638,99555.0,99554.0,0.15344721]
[1746706955149,0.3688638,99555.0,99554.0,0.15444721]
[1746706957150,0.3688638,99555.0,99554.0,0.15544721]
[1746706958549,0.3688638,99555.0,99554.0,0.43631301]
[1746706959047,0.3688638,99555.0,99554.0,0.60431301]
[1746706959250,0.2008638,99555.0,99554.0,0.4508658]
[1746706959450,0.2008638,99555.0,99554.0,0.5139658]
[1746706959753,0.2028638,99555.0,99554.0,0.5139658]
[1746706960751,0.2028638,99555.0,99554.0,0.5119658]
[1746706961051,0.2028638,99555.0,99554.0,0.2311]
[1746706961246,0.2028638,99555.0,99554.0,0.0631]
[1746706961447,0.2028638,99555.0,99554.0,0.0651]
[1746706961749,0.2008638,99555.0,99554.0,0.0346]
[1746706962149,0.3688638,99555.0,99554.0,0.0336]
[1746706962559,0.3698638,99555.0,99554.0,0.0336]
[1746706963248,0.2018638,99555.0,99554.0,0.0336]
[1746706964162,0.2018638,99555.0,99554.0,0.0326]
[1746706964661,0.2028638,99555.0,99554.0,0.0326]
[1746706965162,0.2018638,99555.0,99554.0,0.0326]
[1746706965364,0.2038638,99555.0,99554.0,0.0326]
[1746706965759,0.2028638,99555.0,99554.0,0.0326]
[1746706965959,0.2008638,99555.0,99554.0,0.0326]
[1746706966156,0.2028638,99555.0,99554.0,0.0326]
[1746706973470,0.2028638,99555.0,99520.0,0.36848061]
[1746706973670,0.2008779,99548.0,99547.0,0.0303]
[1746706973968,0.2008779,99548.0,99547.0,0.18374721]
[1746706974166,0.3688779,99548.0,99547.0,0.18374721]
[1746706974668,0.4305779,99548.0,99547.0,0.18374721]
[1746706975368,0.4345779,99548.0,99547.0,0.18374721]
[1746706975569,0.4365779,99548.0,99547.0,0.21374721]
[1746706976164,0.4365779,99548.0,99547.0,0.0603]
[1746706976366,0.3748779,99548.0,99547.0,0.0603]
[1746706976571,0.3748779,99548.0,99547.0,0.1303]
[1746706976757,0.3748779,99548.0,99547.0,0.0603]
[1746706977167,0.2068779,99548.0,99547.0,0.0603]
[1746706977564,0.2028779,99548.0,99547.0,0.0603]
[1746706977763,0.2068779,99548.0,99547.0,0.0603]
[1746706978472,0.2058779,99548.0,99547.0,0.0603]
[1746706978963,0.2048779,99548.0,99547.0,0.0603]
[1746706979571,0.2348779,99548.0,99547.0,0.0603]
[1746706980468,0.2656779,99548.0,99547.0,0.0303]
[1746706980772,0.2980779,99548.0,99547.0,0.0303]
[1746706981166,0.4660779,99548.0,99547.0,0.0303]
[1746706981767,0.4028779,99548.0,99547.0,0.0303]
[1746706982163,0.2358779,99548.0,99547.0,0.0303]
[1746706982373,0.2368779,99548.0,99547.0,0.0303]
[1746706983966,0.2358779,99548.0,99547.0,0.0303]
[1746706984674,0.2328779,99548.0,99547.0,0.0303]
[1746706984873,0.2358779,99548.0,99547.0,0.0303]
[1746706985667,0.2328779,99548.0,99547.0,0.0303]
[1746706985871,0.2681779,99548.0,99547.0,0.0303]
[1746706986272,0.4361779,99548.0,99547.0,0.0303]
[1746706988177,0.2681779,99548.0,99547.0,0.0303]
[1746706989179,0.4361779,99548.0,99547.0,0.0303]
[1746706991079,0.2681779,99548.0,99547.0,0.0303]
[1746706994187,0.4361779,99548.0,99547.0,0.0303]
[1746706994977,0.4038779,99548.0,99547.0,0.0303]
[1746706995179,0.2358779,99548.0,99547.0,0.0303]
[1746707000189,0.2048779,99548.0,99547.0,0.2311799]
[1746707000487,0.2048779,99548.0,99547.0,0.2511799]
[1746707000786,0.2048779,99548.0,99547.0,0.2311799]
[1746707001282,0.2028779,99548.0,99547.0,0.3991799]
[1746707001486,0.2028779,99548.0,99547.0,0.1983]
[1746707001989,0.2028779,99548.0,99547.0,0.1993]
[1746707002581,0.2028779,99548.0,99547.0,0.4001799]
[1746707002882,0.2018779,99548.0,99547.0,0.4001799]
[1746707003587,0.2018779,99548.0,99547.0,0.3991799]
[1746707003789,0.2018779,99548.0,99547.0,0.4001799]
[1746707005000,0.2018779,99548.0,99547.0,0.4306799]
[1746707005187,0.2018779,99548.0,99547.0,0.7914799]
[1746707006487,0.001,99548.0,99547.0,1.07193589]
[1746707006791,0.00251,99552.0,99551.0,0.2008719]
[1746707006983,0.2008688,99553.0,99552.0,0.2008698]
[1746707007293,0.2008688,99553.0,99552.0,0.4013218]
[1746707007496,0.2008688,99553.0,99552.0,0.4633218]
[1746707008086,0.2008688,99553.0,99552.0,0.78476901]
[1746707008690,0.2008688,99553.0,99552.0,0.58431701]
[1746707009788,0.2018688,99553.0,99552.0,0.58431701]
[1746707010282,0.2018688,99553.0,99552.0,0.58531701]
[1746707010487,0.001,99553.0,99552.0,0.5623178]
[1746707010990,0.2018678,99553.0,99552.0,0.5623178]
[1746707011788,0.001,99553.0,99552.0,0.5623178]
[1746707017507,0.001,99553.0,99552.0,0.9731178]
[1746707017701,0.00251,99557.0,99556.0,0.2008618]
[1746707017998,0.3012723,99565.0,99564.0,0.2008456]
[1746707018299,0.3012723,99565.0,99564.0,0.7596456]
[1746707018886,0.3012723,99565.0,99564.0,0.8230456]
[1746707019898,0.3062723,99565.0,99564.0,0.83917546]
[1746707022290,0.3062723,99565.0,99564.0,0.80917546]
[1746707022486,0.3379723,99565.0,99564.0,0.80917546]
[1746707026392,0.287761,99565.0,99564.0,0.80917546]
[1746707030503,0.2375501,99565.0,99564.0,0.96245071]
[1746707030700,0.2058436,99565.0,99564.0,0.96245071]
[1746707030900,0.2038436,99565.0,99564.0,0.96245071]
[1746707031205,0.2038436,99565.0,99564.0,1.00345071]
[1746707031606,0.2008436,99565.0,99564.0,1.00345071]
[1746707032799,0.2316436,99565.0,99564.0,0.85117546]
[1746707033705,0.2316436,99565.0,99564.0,0.81117546]
[1746707034209,0.2316436,99565.0,99564.0,0.64317546]
[1746707036204,0.2316436,99565.0,99564.0,0.81117546]
[1746707038908,0.2316436,99565.0,99564.0,0.85117546]
[1746707040109,0.2316436,99565.0,99564.0,0.81117546]
[1746707040302,0.2316436,99565.0,99564.0,0.85117546]
[1746707041401,0.0308,99565.0,99564.0,0.85117546]
[1746707041604,0.2316436,99565.0,99564.0,0.85117546]
[1746707043507,0.0308,99565.0,99564.0,0.85117546]